bitfinex/quotes_SOLUSD_20250819
["timestamp","ask_amount","ask_price","bid_price","bid_amount"]
[1755616600586,0.03,178.27,178.23,0.7]
[1755616600763,0.59,178.27,178.22,11.19090207]
[1755616600958,0.03,178.27,178.22,11.89090207]
[1755616601764,0.03,178.27,178.24,11.19090207]
[1755616601964,0.03,178.27,178.25,11.19090207]
[1755616602587,0.03,178.27,178.26,0.7]
[1755616602785,0.03,178.27,178.26,11.89090207]
[1755616602988,0.03,178.27,178.26,25.48649608]
[1755616603899,0.03,178.27,178.25,11.19090207]
[1755616604103,0.03,178.27,178.23,11.89090207]
[1755616604694,0.03,178.27,178.24,11.89090207]
[1755616605004,0.03,178.27,178.23,11.19090207]
[1755616605681,0.03,178.27,178.22,11.19090207]
[1755616605878,0.03,178.27,178.22,90.39090207]
[1755616606098,0.03,178.27,178.22,91.09090207]
[1755616606401,11.19090207,178.25,178.2,0.06]
[1755616606577,11.19090207,178.24,178.2,0.06]
[1755616606900,11.19090207,178.25,178.2,0.76]
[1755616607209,11.19090207,178.25,178.2,11.95090207]
[1755616607583,11.19090207,178.25,178.2,0.76]
[1755616608090,11.75090207,178.25,178.2,0.06]
[1755616608289,0.56,178.25,178.2,0.06]
[1755616608497,0.03,178.27,178.26,26.0]
[1755616608684,0.03,178.27,178.26,25.48649608]
[1755616609216,0.03,178.27,178.26,11.89090207]
[1755616609623,0.03,178.27,178.26,51.48649608]
[1755616609785,0.03,178.27,178.26,37.89090207]
[1755616610113,0.03,178.27,178.25,11.19090207]
[1755616610290,0.03,178.27,178.26,11.89090207]
[1755616611714,0.03,178.27,178.26,37.89090207]
[1755616611899,0.03,178.28,178.26,130.68649608]
[1755616612082,0.03,178.28,178.27,11.89090207]
[1755616612483,0.03,178.28,178.27,25.48649608]
[1755616613414,0.03,178.31,178.3,39.59559401]
[1755616613719,0.03,178.36,178.35,13.59559401]
[1755616613919,0.03,178.36,178.35,24.78649608]
[1755616614289,0.03,178.36,178.35,25.48649608]
[1755616617022,0.03,178.42,178.35,25.48649608]
[1755616617209,0.03,178.42,178.34,74.50722432]
[1755616617210,0.03,178.42,178.39,24.78649608]
[1755616617594,0.03,178.42,178.39,25.48649608]
[1755616619422,0.03,178.42,178.39,13.59559401]
[1755616619631,0.03,178.42,178.39,24.78649608]
[1755616619796,0.03,178.42,178.39,25.48649608]
[1755616620614,0.03,178.42,178.39,24.78649608]
[1755616621016,0.03,178.42,178.38,42.86]
[1755616621218,0.03,178.42,178.39,53.73324508]
[1755616621527,0.2,178.46,178.43,39.59559401]
[1755616621699,0.2,178.46,178.45,24.78649608]
[1755616621905,0.2,178.46,178.45,67.62649608]
[1755616622133,0.2,178.46,178.45,94.32649608]
[1755616623219,0.85,178.54,178.49,13.59559401]
[1755616623220,0.2,178.54,178.49,13.59559401]
[1755616623529,0.2,178.54,178.53,11.19090207]
[1755616624410,0.2,178.54,178.53,2.245236]
[1755616624803,0.2,178.54,178.52,11.19090207]
[1755616625006,0.2,178.54,178.53,94.31649608]
[1755616625240,0.03,178.56,178.54,13.59559401]
[1755616625509,0.03,178.58,178.57,39.59559401]
[1755616625725,0.67,178.7,178.58,13.59559401]
[1755616625920,0.67,178.7,178.59,50.78649608]
[1755616626116,0.67,178.7,178.59,51.49649608]
[1755616626337,0.67,178.7,178.61,11.19090207]
[1755616626506,0.67,178.67,178.61,24.78649608]
[1755616626837,0.67,178.7,178.61,68.29649608]
[1755616627705,0.67,178.7,178.61,57.10559401]
[1755616628014,0.67,178.72,178.62,13.59559401]
[1755616628215,0.67,178.72,178.66,26.0]
[1755616628418,0.67,178.72,178.67,11.19090207]
[1755616628915,0.67,178.72,178.66,53.97090207]
[1755616629131,0.67,178.72,178.66,42.78]
[1755616629710,0.67,178.72,178.71,11.19090207]
[1755616629911,0.67,178.72,178.69,11.19090207]
[1755616630240,0.67,178.72,178.68,11.19090207]
[1755616630438,0.67,178.72,178.7,11.19090207]
[1755616630740,0.67,178.74,178.66,43.49]
[1755616631105,0.67,178.74,178.7,11.19090207]
[1755616631537,0.67,178.73,178.66,60.317934]
[1755616631736,42.00016061,178.91,178.66,60.317934]
[1755616631737,0.67,178.77,178.72,11.19090207]
[1755616631907,0.67,178.77,178.72,42.76]
[1755616632110,26.0,178.78,178.67,26.0]
[1755616632310,11.86090207,178.76,178.7,11.19090207]
[1755616632619,11.86090207,178.75,178.65,14.30559401]
[1755616632820,11.19090207,178.71,178.66,59.567934]
[1755616633022,0.67,178.74,178.7,11.19090207]
[1755616633214,0.67,178.77,178.71,26.0]
[1755616633427,11.19090207,178.73,178.69,26.0]
[1755616633738,0.67,178.77,178.66,28.01883607]
[1755616633739,0.67,178.72,178.66,28.01883607]
[1755616633941,0.67,178.72,178.66,16.827934]
[1755616634116,11.19090207,178.69,178.66,16.827934]
[1755616634518,0.67,178.68,178.64,11.19090207]
[1755616634819,0.67,178.68,178.57,10.0]
[1755616634820,0.67,178.67,178.5,61.78519969]
[1755616635020,0.67,178.67,178.61,11.19090207]
[1755616635220,11.86090207,178.7,178.64,11.19090207]
[1755616635423,0.67,178.7,178.66,11.19090207]
[1755616635811,0.67,178.7,178.62,0.71]
[1755616636018,11.86090207,178.7,178.65,11.19090207]
[1755616636210,0.67,178.69,178.65,11.19090207]
[1755616636611,0.67,178.68,178.63,11.19090207]
[1755616636822,11.19090207,178.65,178.61,16.830767]
[1755616637321,52.72,178.75,178.61,16.830767]
[1755616637322,11.19090207,178.62,178.61,16.830767]
[1755616637508,0.67,178.64,178.57,11.19090207]
[1755616637710,4.5229095,178.66,178.6,11.19090207]
[1755616637949,14.53683779,178.87,178.61,26.71]
[1755616638216,8.93978595,178.9,178.61,26.71]
[1755616638217,0.67,178.84,178.65,26.0]
[1755616638414,44.97,178.8,178.67,26.0]
[1755616638642,0.67,178.79,178.68,0.71]
[1755616638836,0.67,178.79,178.69,39.59559401]
[1755616639039,0.67,178.79,178.7,0.71]
[1755616639312,0.67,178.79,178.75,11.19090207]
[1755616639527,44.97,178.82,178.73,0.71]
[1755616640166,0.67,178.82,178.78,11.19090207]
[1755616640449,44.24,178.85,178.75,0.71]
[1755616640665,0.67,178.85,178.77,13.59559401]
[1755616640865,0.67,178.85,178.83,11.19090207]
[1755616641021,0.67,178.84,178.75,0.71]
[1755616641219,0.67,178.84,178.79,11.19090207]
[1755616641420,0.03,178.83,178.79,11.19090207]
[1755616641633,0.03,178.83,178.75,0.71]
[1755616641634,0.03,178.81,178.78,11.19090207]
[1755616641834,0.03,178.81,178.75,0.71]
[1755616642143,0.03,178.81,178.77,11.19090207]
[1755616642361,0.03,178.81,178.75,0.71]
[1755616642849,0.03,178.81,178.75,11.19090207]
[1755616643049,0.03,178.81,178.76,0.71]
[1755616643255,11.19090207,178.78,178.73,0.71]
[1755616643458,11.19090207,178.78,178.76,11.265594]
[1755616643668,11.19090207,178.77,178.76,11.265594]
[1755616643958,0.03,178.81,178.71,0.71]
[1755616643959,0.27,178.79,178.71,11.90090207]
[1755616644158,0.03,178.81,178.73,11.19090207]
[1755616644322,11.19090207,178.78,178.72,11.900902]
[1755616644522,11.19090207,178.73,178.72,11.190902]
[1755616644746,11.19090207,178.73,178.7,5.72446722]
[1755616644947,26.27,178.78,178.68,26.71]
[1755616645152,11.19090207,178.74,178.69,11.190902]
[1755616645456,44.16,178.77,178.69,11.900902]
[1755616645746,11.19090207,178.75,178.7,0.71]
[1755616645916,11.19090207,178.74,178.71,0.71]
[1755616646125,11.19090207,178.74,178.69,11.190902]
[1755616646126,11.19090207,178.72,178.69,11.190902]
[1755616646329,11.19090207,178.72,178.67,0.71]
[1755616646526,0.27,178.76,178.67,0.71]
[1755616646527,0.27,178.76,178.68,0.71]
[1755616646764,11.19090207,178.74,178.68,11.90090207]
[1755616646943,0.03,178.81,178.68,11.19090207]
[1755616647140,0.03,178.81,178.73,26.0]
[1755616647359,0.03,178.81,178.8,24.78649608]
[1755616647553,2.91678971,178.97,178.87,39.59559401]
[1755616647742,2.91678971,178.97,178.88,0.71]
[1755616647949,0.2,178.99,178.89,13.59559401]
[1755616648151,0.2,178.99,178.94,11.19090207]
[1755616648339,0.2,178.99,178.95,11.19090207]
[1755616648751,11.86090207,178.98,178.9,17.511546]
[1755616648951,11.19090207,178.97,178.9,0.71]
[1755616649258,0.67,178.97,178.87,0.71]
[1755616649429,0.67,178.97,178.82,26.0]
[1755616649430,11.19090207,178.91,178.84,13.59559401]
[1755616649643,0.67,178.92,178.91,16.80437]
[1755616649947,11.86090207,178.92,178.91,16.80437]
[1755616650469,18.19847919,178.92,178.84,17.52847919]
[1755616650665,17.52847919,178.9,178.84,17.52847919]
[1755616650834,44.0,178.91,178.84,16.810019]
[1755616651034,17.52847919,178.9,178.84,16.810019]
[1755616651235,17.52847919,178.86,178.84,16.810019]
[1755616651476,0.67,178.85,178.78,13.59559401]
[1755616651676,17.52847919,178.86,178.8,17.52847919]
[1755616651970,17.52847919,178.87,178.81,17.52847919]
[1755616652270,62.17847919,178.88,178.82,17.52847919]
[1755616652481,17.52847919,178.86,178.8,16.812845]
[1755616652638,17.52847919,178.85,178.8,16.812845]
[1755616652834,17.52847919,178.86,178.8,34.34132419]
[1755616653056,17.52847919,178.86,178.8,35.00132419]
[1755616653337,61.44847919,178.87,178.82,17.52847919]
[1755616653562,18.21847919,178.86,178.78,13.59559401]
[1755616653784,26.69,178.89,178.82,17.52847919]
[1755616653991,43.92,178.89,178.83,0.66]
[1755616654207,43.92,178.89,178.83,17.52847919]
[1755616654362,61.44847919,178.89,178.83,17.52847919]
[1755616654565,43.92,178.89,178.84,17.52847919]
[1755616654766,10.0,179.0,178.8,16.812845]
[1755616654767,0.69,178.94,178.88,17.52847919]
[1755616654994,13.59559401,178.96,178.89,17.52847919]
[1755616655297,43.9,178.94,178.9,17.52847919]
[1755616655515,17.52847919,178.94,178.87,0.66]
[1755616655791,17.52847919,178.9,178.86,13.595594]
[1755616656288,17.52847919,178.92,178.87,17.52847919]
[1755616656493,17.52847919,178.9,178.84,34.33755519]
[1755616656796,18.21847919,178.91,178.85,17.52847919]
[1755616657287,43.9,178.93,178.86,17.52847919]
[1755616657502,43.82,178.92,178.86,17.52847919]
[1755616657706,61.34847919,178.92,178.86,17.52847919]
[1755616657883,17.52847919,178.9,178.84,17.469077]
[1755616658199,44.51,178.92,178.84,34.99755619]
[1755616658398,26.69,178.94,178.85,17.52847919]
[1755616658611,17.52847919,178.9,178.85,0.66]
[1755616658776,17.52847919,178.88,178.84,16.809077]
[1755616658976,13.59559401,178.92,178.84,16.809077]
[1755616658977,17.52847919,178.85,178.84,16.809077]
[1755616660304,17.52847919,178.85,178.8,0.06]
[1755616660620,17.52847919,178.87,178.81,18.18847919]
[1755616660906,17.52847919,178.87,178.8,0.06]
[1755616660907,43.52847919,178.89,178.83,17.52847919]
[1755616661123,43.7,178.88,178.82,0.66]
[1755616661405,43.7,178.87,178.85,17.52847919]
[1755616661788,43.7,178.87,178.82,0.66]
[1755616661789,43.7,178.87,178.84,17.52847919]
[1755616662103,43.68,178.88,178.84,17.52847919]
[1755616662609,17.52847919,178.85,178.8,0.06]
[1755616662807,0.69,178.87,178.8,0.06]
[1755616663106,17.52847919,178.85,178.8,17.58847919]
[1755616663478,43.62,178.85,178.81,17.52847919]
[1755616663690,43.62,178.85,178.82,18.18847919]
[1755616663878,17.52847919,178.86,178.81,17.52847919]
[1755616664082,43.62,178.85,178.8,17.58847919]
[1755616664281,17.52847919,178.84,178.8,0.06]
[1755616664812,17.52847919,178.83,178.8,0.06]
[1755616665108,17.52847919,178.82,178.8,0.06]
[1755616665311,17.52847919,178.81,178.8,0.06]
[1755616665492,43.62,178.85,178.8,0.06]
[1755616665692,17.52847919,178.83,178.8,0.06]
[1755616665929,61.08847919,178.82,178.8,0.06]
[1755616666214,17.52847919,178.81,178.8,0.06]
[1755616667099,18.21847919,178.81,178.8,0.06]
[1755616668204,61.71847919,178.81,178.8,0.06]
[1755616668636,75.3140732,178.81,178.8,0.06]
[1755616668800,14.28559401,178.81,178.8,0.06]
[1755616669001,57.76559401,178.81,178.8,0.06]
[1755616669205,75.2940732,178.81,178.8,0.06]
[1755616670004,34.73388137,178.81,178.8,0.06]
[1755616670204,78.23388137,178.81,178.8,0.06]
[1755616670399,78.21388137,178.81,178.8,0.06]
[1755616671014,34.73388137,178.81,178.8,0.06]
[1755616671315,20.44828736,178.81,178.8,0.06]
[1755616671506,43.46,178.81,178.8,0.06]
[1755616671713,61.67847919,178.81,178.8,0.06]
[1755616673324,60.98847919,178.81,178.8,0.06]
[1755616673695,60.96847919,178.81,178.8,0.06]
[1755616674013,17.52847919,178.81,178.8,0.06]
[1755616674217,43.4,178.81,178.8,0.06]
[1755616674927,43.38,178.81,178.8,0.72]
[1755616675423,43.36,178.81,178.8,0.72]
[1755616675809,43.36,178.81,178.8,0.06]
[1755616676199,60.88847919,178.81,178.8,0.06]
[1755616676425,43.36,178.81,178.8,0.06]
[1755616677214,43.3,178.81,178.8,0.06]
[1755616677412,0.03,178.83,178.8,18.24847919]
[1755616677731,0.03,178.83,178.82,17.52847919]
[1755616678122,0.03,178.83,178.82,18.18847919]
[1755616678815,0.03,178.83,178.82,0.66]
[1755616679013,0.03,178.83,178.82,18.18847919]
[1755616680004,0.03,178.83,178.8,0.06]
[1755616680344,17.52847919,178.81,178.8,0.06]
[1755616680507,18.21847919,178.81,178.8,0.06]
[1755616680914,26.0,178.78,178.76,0.06]
[1755616681112,74.3640732,178.77,178.76,0.06]
[1755616681315,17.52847919,178.75,178.71,16.815672]
[1755616681728,57.8140732,178.75,178.71,16.815672]
[1755616682034,57.8140732,178.75,178.67,0.66]
[1755616682220,57.8140732,178.75,178.66,0.66]
[1755616682419,31.8140732,178.75,178.63,17.52847919]
[1755616682608,44.21847919,178.75,178.66,18.18847919]
[1755616682810,60.72847919,178.75,178.68,0.66]
[1755616683435,60.72847919,178.75,178.7,0.7]
[1755616683675,43.2,178.75,178.7,18.22847919]
[1755616683811,60.72847919,178.75,178.7,0.7]
[1755616684011,69.16,178.75,178.74,0.76]
[1755616684312,86.68847919,178.75,178.74,0.06]
[1755616684528,87.35847919,178.75,178.74,0.06]
[1755616685248,86.66847919,178.75,178.74,0.06]
[1755616685428,26.0,178.75,178.74,0.06]
[1755616685633,17.52847919,178.76,178.74,0.06]
[1755616685829,0.03,178.83,178.74,0.76]
[1755616685830,43.14,178.75,178.74,0.76]
[1755616686044,69.16,178.77,178.74,0.76]
[1755616686220,43.16,178.77,178.74,0.76]
[1755616686421,43.16,178.77,178.75,0.7]
[1755616686838,43.16,178.77,178.74,0.06]
[1755616687024,17.52847919,178.76,178.74,0.06]
[1755616687234,17.52847919,178.75,178.74,0.06]
[1755616687445,43.16,178.77,178.75,0.7]
[1755616687647,60.68847919,178.77,178.74,0.06]
[1755616688159,43.1,178.76,178.75,0.7]
[1755616688335,60.62847919,178.77,178.75,0.7]
[1755616688766,43.1,178.77,178.74,0.06]
[1755616688929,43.1,178.77,178.76,0.7]
[1755616689334,43.1,178.77,178.74,0.06]
[1755616689661,17.52847919,178.75,178.74,0.06]
[1755616689953,60.58847919,178.75,178.74,0.06]
[1755616690531,61.25847919,178.75,178.74,0.06]
[1755616690732,60.58847919,178.75,178.74,0.06]
[1755616690956,61.25847919,178.75,178.74,0.06]
[1755616691259,74.8540732,178.75,178.74,0.06]
[1755616692052,26.0,178.72,178.7,0.06]
[1755616692244,13.59559401,178.74,178.7,0.06]
[1755616692245,100.1040732,178.71,178.7,0.06]
[1755616692557,100.7740732,178.71,178.7,0.06]
[1755616693444,44.19847919,178.71,178.7,0.06]
[1755616693691,86.48847919,178.71,178.7,0.06]
[1755616694260,86.46847919,178.71,178.7,0.06]
[1755616694473,12.244102,178.78,178.7,0.06]
[1755616694474,13.59559401,178.77,178.7,0.76]
[1755616694757,17.52847919,178.72,178.7,0.76]
[1755616694970,42.92,178.72,178.71,0.7]
[1755616695180,60.44847919,178.72,178.7,0.06]
[1755616695349,17.52847919,178.71,178.7,0.06]
[1755616695552,43.52847919,178.71,178.7,0.06]
[1755616695742,26.0,178.71,178.7,0.06]
[1755616695962,2.92699283,178.81,178.7,0.76]
[1755616696368,43.84,178.8,178.71,17.52847919]
[1755616696568,43.84,178.8,178.7,0.76]
[1755616696569,17.52847919,178.77,178.72,0.7]
[1755616696766,43.92,178.76,178.72,0.7]
[1755616697070,61.44847919,178.75,178.72,0.7]
[1755616697244,43.94,178.74,178.73,0.7]
[1755616697439,17.52847919,178.77,178.73,0.7]
[1755616697669,43.92,178.76,178.74,0.7]
[1755616697868,61.42847919,178.76,178.72,0.7]
[1755616698078,61.42847919,178.76,178.74,0.7]
[1755616698250,43.9,178.78,178.75,18.22847919]
[1755616698453,17.52847919,178.76,178.7,0.06]
[1755616698768,26.0,178.78,178.75,17.52847919]
[1755616698957,43.52847919,178.78,178.7,0.06]
[1755616699150,17.52847919,178.77,178.72,18.22847919]
[1755616699345,17.52847919,178.78,178.73,0.7]
[1755616699673,0.03,178.83,178.73,0.7]
[1755616699674,43.88,178.8,178.77,17.52847919]
[1755616699856,43.88,178.8,178.77,0.7]
[1755616700174,43.88,178.8,178.78,0.7]
[1755616700557,17.52847919,178.79,178.74,0.7]
[1755616700755,17.52847919,178.77,178.74,0.7]
[1755616701079,44.28,178.77,178.74,0.7]
[1755616701263,61.80847919,178.77,178.74,0.7]
[1755616702275,44.28,178.77,178.75,0.7]
[1755616702447,44.28,178.77,178.73,17.52847919]
[1755616702658,44.28,178.77,178.74,0.7]
[1755616702977,13.62559401,178.83,178.74,0.7]
[1755616702978,26.03,178.83,178.74,0.7]
[1755616703182,44.2,178.82,178.76,17.52847919]
[1755616703395,44.49,178.83,178.77,0.7]
[1755616703594,44.44,178.82,178.77,0.7]
[1755616703758,0.03,178.81,178.78,17.52847919]
[1755616704077,0.03,178.81,178.79,0.7]
[1755616704381,0.03,178.81,178.79,18.22847919]
[1755616704580,0.03,178.81,178.8,0.7]
[1755616704894,0.03,178.81,178.8,18.22847919]
[1755616706066,0.03,178.81,178.8,0.7]
[1755616706588,0.03,178.81,178.78,17.52847919]
[1755616706757,0.03,178.81,178.79,18.22847919]
[1755616707266,0.03,178.81,178.8,18.22847919]
[1755616707462,0.03,178.81,178.8,31.8240732]
[1755616707675,0.03,178.83,178.82,17.52847919]
[1755616708064,0.03,178.83,178.82,31.8240732]
[1755616708269,0.03,178.83,178.82,18.22847919]
[1755616708954,0.03,178.83,178.82,26.7]
[1755616709157,0.03,178.83,178.82,44.22847919]
[1755616709353,0.03,178.83,178.82,43.52847919]
[1755616709559,0.03,178.83,178.82,26.0]
[1755616709751,0.03,178.83,178.81,17.52847919]
[1755616710011,0.03,178.83,178.79,17.52847919]
[1755616710298,0.03,178.83,178.79,26.0]
[1755616710508,0.03,178.83,178.8,17.52847919]
[1755616710806,0.03,178.83,178.8,0.7]
[1755616710962,0.03,178.83,178.82,17.52847919]
[1755616711306,0.03,178.83,178.8,17.52847919]
[1755616711601,0.03,178.83,178.77,26.7]
[1755616711769,0.03,178.81,178.78,17.52847919]
[1755616711954,0.03,178.81,178.77,26.7]
[1755616711955,0.03,178.81,178.8,17.52847919]
[1755616712166,0.03,178.81,178.79,0.7]
[1755616712359,0.03,178.81,178.8,18.22847919]
[1755616713181,0.03,178.81,178.8,31.8240732]
[1755616713359,0.03,178.81,178.8,18.22847919]
[1755616713757,0.03,178.81,178.8,17.52847919]
[1755616713986,0.03,178.81,178.79,17.52847919]
[1755616714160,0.03,178.81,178.78,0.68]
[1755616714363,0.03,178.81,178.75,13.59559401]
[1755616714579,0.03,178.81,178.78,17.52847919]
[1755616714791,17.52847919,178.8,178.72,13.59559401]
[1755616715093,17.52847919,178.8,178.75,17.52847919]
[1755616715471,26.03,178.81,178.76,17.52847919]
[1755616715791,43.55847919,178.81,178.75,18.20847919]
[1755616716092,44.22847919,178.81,178.75,18.20847919]
[1755616716295,44.22847919,178.81,178.75,17.52847919]
[1755616716483,0.03,178.81,178.76,0.68]
[1755616716987,0.03,178.81,178.73,13.59559401]
[1755616716988,0.03,178.81,178.75,13.59559401]
[1755616717195,0.03,178.81,178.78,17.52847919]
[1755616717370,0.03,178.81,178.79,18.20847919]
[1755616717598,0.03,178.81,178.79,0.68]
[1755616717795,0.03,178.81,178.8,17.52847919]
[1755616718520,0.03,178.81,178.8,18.20847919]
[1755616718820,0.03,178.81,178.8,0.68]
[1755616719123,0.03,178.81,178.8,18.20847919]
[1755616719719,0.03,178.81,178.8,31.8040732]
[1755616724019,0.03,178.81,178.8,18.20847919]
[1755616724910,0.03,178.81,178.76,28.241587]
[1755616724911,0.03,178.81,178.76,2.921587]
[1755616725111,0.67,178.8,178.78,17.52847919]
[1755616725300,0.03,178.81,178.79,17.52847919]
[1755616725489,0.03,178.81,178.8,17.52847919]
[1755616725692,0.03,178.81,178.8,18.20847919]
[1755616725929,0.03,178.81,178.8,17.52847919]
[1755616726225,0.03,178.81,178.8,31.8040732]
[1755616726540,0.03,178.81,178.8,14.27559401]
[1755616726839,0.03,178.81,178.8,44.20847919]
[1755616727415,0.03,178.81,178.8,57.8040732]
[1755616730304,0.03,178.81,178.8,40.27559401]
[1755616730525,0.03,178.81,178.8,57.8040732]
[1755616732633,0.03,178.83,178.8,57.8040732]
[1755616732833,0.03,178.83,178.82,31.1240732]
[1755616733208,0.03,178.83,178.82,31.8040732]
[1755616733742,0.03,178.85,178.84,39.59559401]
[1755616733907,0.03,178.85,178.84,101.1040732]
[1755616734110,0.03,178.85,178.84,101.7840732]
[1755616734309,0.03,178.87,178.84,95.40679705]
[1755616734615,0.03,178.87,178.86,11.15120304]
[1755616734810,0.03,178.87,178.85,0.68]
[1755616735038,0.03,178.87,178.86,11.15120304]
[1755616735226,0.03,178.87,178.86,11.83120304]
[1755616735933,0.03,178.87,178.86,25.42679705]
[1755616736617,0.03,178.87,178.86,51.42679705]
[1755616736931,0.03,178.89,178.88,26.0]
[1755616737134,0.03,178.89,178.88,37.15120304]
[1755616737343,0.03,178.89,178.88,50.74679705]
[1755616737516,0.03,178.92,178.91,50.74679705]
[1755616738017,0.03,178.92,178.91,51.42679705]
[1755616738245,0.67,178.99,178.91,62.57800009]
[1755616738533,0.67,178.99,178.98,11.15120304]
[1755616738834,2.91568605,179.04,178.98,11.15120304]
[1755616739052,0.67,179.02,178.99,11.15120304]
[1755616739545,0.67,179.02,178.98,11.15120304]
[1755616740015,0.67,179.01,178.98,11.15120304]
[1755616740340,0.67,179.0,178.93,43.78]
[1755616740538,0.67,179.0,178.83,4.51094125]
[1755616740715,0.67,179.0,178.75,0.06]
[1755616740716,11.15120304,178.89,178.75,0.06]
[1755616741049,11.15120304,178.85,178.76,0.68]
[1755616741242,0.67,178.84,178.76,0.68]
[1755616741439,0.67,178.84,178.79,11.15120304]
[1755616741948,26.0,178.89,178.79,11.15120304]
[1755616741949,0.67,178.83,178.79,11.15120304]
[1755616742311,0.67,178.83,178.79,17.53713093]
[1755616742518,0.67,178.82,178.76,26.68]
[1755616742822,0.67,178.82,178.75,17.59713093]
[1755616743023,17.53713093,178.84,178.78,17.53713093]
[1755616743439,17.53713093,178.84,178.75,0.74]
[1755616743769,43.53713093,178.85,178.79,17.53713093]
[1755616744114,43.53713093,178.84,178.78,17.53713093]
[1755616744316,10.0,178.91,178.75,0.74]
[1755616744317,12.241713,178.94,178.81,17.53713093]
[1755616744517,17.53713093,178.84,178.78,17.53713093]
[1755616745051,17.76713093,178.83,178.77,17.53713093]
[1755616745347,17.76713093,178.83,178.78,17.53713093]
[1755616745551,26.23,178.86,178.81,17.53713093]
[1755616745718,26.0,178.85,178.83,17.53713093]
[1755616746048,43.53713093,178.88,178.83,17.53713093]
[1755616746543,0.23,178.87,178.83,17.53713093]
[1755616746750,17.76713093,178.9,178.84,17.53713093]
[1755616746935,0.23,178.9,178.85,17.53713093]
[1755616747137,26.0,178.88,178.83,17.53713093]
[1755616747342,0.23,178.87,178.83,17.53713093]
[1755616747755,26.0,178.88,178.84,17.53713093]
[1755616748135,26.0,178.88,178.83,17.53713093]
[1755616748337,43.53713093,178.88,178.83,17.53713093]
[1755616748644,44.92,178.91,178.84,17.53713093]
[1755616748840,17.53713093,178.9,178.84,18.21713093]
[1755616749162,0.23,178.92,178.87,17.53713093]
[1755616749347,0.23,178.91,178.86,17.53713093]
[1755616749662,17.76713093,178.91,178.86,17.53713093]
[1755616749864,43.76713093,178.91,178.86,17.53713093]
[1755616750028,43.76713093,178.91,178.84,0.68]
[1755616750232,17.53713093,178.87,178.81,18.21713093]
[1755616750446,17.53713093,178.86,178.81,0.68]
[1755616750632,13.82559401,178.9,178.79,17.59713093]
[1755616750633,17.53713093,178.85,178.79,17.59713093]
[1755616750834,17.53713093,178.81,178.79,0.06]
[1755616751276,0.23,178.84,178.79,0.06]
[1755616751277,17.53713093,178.8,178.79,0.06]
[1755616751466,17.53713093,178.81,178.79,0.06]
[1755616751665,0.23,178.88,178.79,17.59713093]
[1755616751835,26.0,178.86,178.81,17.53713093]
[1755616752030,16.8185,178.88,178.83,17.53713093]
[1755616752233,16.8185,178.88,178.84,0.68]
[1755616752452,17.53713093,178.88,178.83,17.53713093]
[1755616752852,70.66,178.9,178.84,17.53713093]
[1755616752853,88.19713093,178.9,178.84,17.53713093]
[1755616753064,88.19713093,178.9,178.84,18.21713093]
[1755616753259,17.53713093,178.89,178.84,0.68]
[1755616753437,17.53713093,178.92,178.86,17.53713093]
[1755616753634,44.62,178.92,178.86,17.53713093]
[1755616753838,62.15713093,178.92,178.87,17.53713093]
[1755616754142,17.53713093,178.92,178.86,17.53713093]
[1755616754438,17.53713093,178.91,178.86,17.53713093]
[1755616754749,17.76713093,178.91,178.85,18.21713093]